{"text_format":"1","workbook":"xlsx","n_sheets":5,"sheets":["Matrices aide à la décision","Indice dynamique fluviale","Indice dynamique bois","Indice Enjeux","Indice Habitat"],"not_rendered":{"charts":11,"images":1,"macros":1,"external_links":0,"defined_names":0,"comments":0,"pivot_tables":0},"unopened":[],"bounds":{"document_bytes":16777216,"sheet_cells":100000,"rows_first":2000,"rows_last":500,"rows_between":2000,"halvings":0,"cell_chars":16384,"cell_head_chars":4096},"cells_cut":0,"cells_raw":0,"read":"whole","date_system":"1900"}

{"sheet":"Matrices aide à la décision","index":0,"n_rows":55,"n_cols":33,"rows_kept":55,"cut":false,"hidden":false,"merged":[[45,1,45,21],[1,1,2,9],[33,6,34,6],[39,6,40,6],[39,21,40,21],[33,21,34,21],[3,1,4,23]]}
[]
[null,"Outil d’aide à la décision pour la dynamique du bois en rivière"]
[]
[null,"L’outil propose d’évaluer le dynamisme du cours d’eau et les enjeux de la dynamique du bois en rivière. L’idée de l’outil est de faire, pour un embâcle donné, un portrait le plus objectif possible de l’environnement fluvial où il se trouve en répondant à une série de questions. Les questions concernent quatre composantes permettant d’éclairer la décision de gestion du bois en rivière : la dynamique fluviale, la dynamique du bois en rivière, le niveau de risque lié aux enjeux et les habitats associés à la présence de bois. "]
[]
[]
[]
[]
[]
[]
[]
[]
[]
[]
[]
[]
[]
[]
[]
[]
[]
[]
[]
[]
[]
[]
[]
[]
[]
[]
[]
[]
[]
[null,null,null,null,null,null,{"$f":"G36/G37","v":0},null,null,null,null,null,null,null,null,null,null,null,null,null,null,{"$f":"V36/V37","v":0}]
[null,null,null,null,"Indice de dynamisme fluvial",null,null,null,null,null,null,null,null,null,null,null,null,null,null,"Indice relatif aux enjeux",null,null,null,null,null,null,null,null,null,null,null,"Indice de dynamisme fluvial",{"$f":"G34","v":0}]
[null,null,null,null,"Score",null,{"$f":"'Indice dynamique fluviale'!$C$19","v":0},null,null,null,null,null,null,null,null,null,null,null,null,"Score",null,{"$f":"'Indice Enjeux'!C18","v":0},null,null,null,null,null,null,null,null,null,"Indice de dynamique du bois en rivière",{"$f":"G40","v":0}]
[null,null,null,null,"Score maximum",null,{"$f":"'Indice dynamique fluviale'!$C$20","v":54},null,null,null,null,null,null,null,null,null,null,null,null,"Score maximum",null,{"$f":"'Indice Enjeux'!C19","v":38},null,null,null,null,null,null,null,null,null,"Indice relatif aux enjeux",{"$f":"V34","v":0}]
[null,null,null,null,null,null,null,null,null,null,null,null,null,null,null,null,null,null,null,null,null,null,null,null,null,null,null,null,null,null,null,"Indice habitat",{"$f":"V40","v":0}]
[]
[null,null,null,null,null,null,{"$f":"G42/G43","v":0},null,null,null,null,null,null,null,null,null,null,null,null,null,null,{"$f":"V42/V43","v":0}]
[null,null,null,null,"Indice de dynamique du bois en rivière",null,{"$f":"F41/F42","v":{"$error":"#DIV/0!"}},null,null,null,null,null,null,null,null,null,null,null,null,"Indice habitat"]
[null,null,null,null,"Score",null,{"$f":"'Indice dynamique bois'!C19","v":0},null,null,null,null,null,null,null,null,null,null,null,null,"Score",null,{"$f":"'Indice Habitat'!C20","v":0}]
[null,null,null,null,"Score maximum",null,{"$f":"'Indice dynamique bois'!C20","v":56},null,null,null,null,null,null,null,null,null,null,null,null,"Score maximum",null,{"$f":"'Indice Habitat'!C21","v":40}]
[]
[]
[null,"*Les trames grisées avec textes identifient des recommandations possibles selon le croisement des indices. Les seuils pour déterminer les frontières des zones sont arbitraires et une validation est nécessaire. Néanmoins, ces trames indiquent des grandes zones et éclairent la prise de décision."]
[]
[]
[]
[]
[]
[]
[]
[]
[null,"Pour plus d'informations : maxime2_boivin@uqac.ca"]

{"sheet":"Indice dynamique fluviale","index":1,"n_rows":59,"n_cols":22,"rows_kept":59,"cut":false,"hidden":false,"merged":[[45,7,45,15],[46,7,46,15],[42,7,42,15],[43,7,43,15],[44,7,44,18],[39,7,39,15],[40,7,40,15],[41,7,41,15],[35,7,35,15],[36,7,36,15],[37,7,37,15],[32,7,32,18],[33,7,33,15],[34,7,34,15],[29,7,29,15],[30,7,30,15],[31,7,31,15],[26,7,26,15],[27,7,27,15],[28,7,28,15],[23,7,23,15],[24,7,24,15],[25,7,25,15],[20,7,20,15],[21,7,21,15],[17,7,17,15],[18,7,18,15],[19,7,19,15],[16,2,17,2],[15,7,15,15],[16,7,16,15],[9,7,9,15],[10,7,10,15],[11,7,11,15],[14,7,14,15],[8,7,8,18],[3,7,3,15],[4,7,4,15],[5,7,5,18],[12,7,12,15],[0,6,0,18],[1,7,1,18],[2,7,2,15],[6,7,6,15],[7,7,7,15]]}
[null,null,null,null,null,null,"Dynamique du cours d'eau"]
[null,null,null,null,null,null,"D1","Quel est le type d'environnement fluvial?",null,null,null,null,null,null,null,null,null,null,null,"D1",{"$f":"SUM(V3:V5)","v":0}]
[null,null,null,null,null,null,null,"Confiné",null,null,null,null,null,null,null,null,null,1,null,null,false,{"$f":"IF(U3=TRUE,R3,0)","v":0}]
[null,null,null,null,null,null,null,"Partiellement confiné",null,null,null,null,null,null,null,null,null,3,null,null,false,{"$f":"IF(U4=TRUE,R4,0)","v":0}]
[null,null,null,null,null,null,null,"Non confiné",null,null,null,null,null,null,null,null,null,5,null,null,false,{"$f":"IF(U5=TRUE,R5,0)","v":0}]
[null,null,null,null,null,null,"D2","Quelle est la cohésion des berges?",null,null,null,null,null,null,null,null,null,null,null,"D2",{"$f":"SUM(V7:V8)","v":0}]
[null,null,null,null,null,null,null,"cohésive (berges rocheuses et argileuses)",null,null,null,null,null,null,null,null,null,1,null,null,false,{"$f":"IF(U7=TRUE,R7,0)","v":0}]
[null,null,null,null,null,null,null,"non-cohésive (sables et gravier)",null,null,null,null,null,null,null,null,null,5,null,null,false,{"$f":"IF(U8=TRUE,R8,0)","v":0}]
[null,null,null,null,null,null,"D3","Quelle est la taille des sédiments qui composent principalement le lit du cours d'eau",null,null,null,null,null,null,null,null,null,null,null,"D3",{"$f":"SUM(V10:V13)","v":0}]
[null,null,null,null,null,null,null,"Lit rocheux ou de bloc >256 mm",null,null,null,null,null,null,null,null,null,0,null,null,false,{"$f":"IF(U10=TRUE,R10,0)","v":0}]
[null,null,null,null,null,null,null,"argile et limon",null,null,null,null,null,null,null,null,null,1,null,null,false,{"$f":"IF(U11=TRUE,R11,0)","v":0}]
[null,null,null,null,null,null,null,"Sable > 0,063 mm et < 2 mm",null,null,null,null,null,null,null,null,null,3,null,null,false,{"$f":"IF(U12=TRUE,R12,0)","v":0}]
[null,null,null,null,null,null,null,"Gravier > 2 mm et < 256 mm",null,null,null,null,null,null,null,null,null,5,null,null,false,{"$f":"IF(U13=TRUE,R13,0)","v":0}]
[null,null,null,null,null,null,"D4","Quels sont les processus actifs observés à l'échelle du tronçon homogène (cochez toutes les situations qui s'appliquent):",null,null,null,null,null,null,null,null,null,null,null,"D4",{"$f":"SUM(V15:V21)","v":0}]
[null,null,null,null,null,null,null,"Apparence stable ",null,null,null,null,null,null,null,null,null,0,null,null,false,{"$f":"IF(U15=TRUE,R15,0)","v":0}]
[null,null,null,null,null,null,null,"érosion des berges par la force hydraulique6",null,null,null,null,null,null,null,null,null,2,null,null,false,{"$f":"IF(U16=TRUE,R16,0)","v":0}]
[null,null,{"$f":"C19/C20","v":0},null,null,null,null,"érosion par mouvements de masses",null,null,null,null,null,null,null,null,null,3,null,null,false,{"$f":"IF(U17=TRUE,R17,0)","v":0}]
["Indice de dynamisme fluvial",null,null,null,null,null,null,"Avulsion",null,null,null,null,null,null,null,null,null,3,null,null,false,{"$f":"IF(U18=TRUE,R18,0)","v":0}]
["Score",null,{"$f":"SUM(V3:V47)","v":0},null,null,null,null,"indices d'incision*",null,null,null,null,null,null,null,null,null,8,null,null,false,{"$f":"IF(U19=TRUE,R19,0)","v":0}]
["Score maximum",null,{"$f":"SUM(R5,R8,R13,R16,R17,R18,R19,R26,R31,R37,R43,R47)","v":54},null,null,null,null,"*envisager une solution pour établir les causes de cette incision"]
[null,null,null,null,null,null,null,"indices d'aggradation*",null,null,null,null,null,null,null,null,null,8,null,null,false,{"$f":"IF(U21=TRUE,R21,0)","v":0}]
[null,null,null,null,null,null,null,"*envisager une solution pour établir les causes de cette aggradation"]
[null,null,null,null,null,null,"D5","Est-ce qu'il y a un stockage substantiel de sédiments sur le lit?",null,null,null,null,null,null,null,null,null,null,null,"D5",{"$f":"SUM(V24:V26)","v":0}]
[null,null,null,null,null,null,null,"absence de bancs ou présence de bancs stables et végétalisés",null,null,null,null,null,null,null,null,null,0,null,null,false,{"$f":"IF(U24=TRUE,R24,0)","v":0}]
[null,null,null,null,null,null,null,"largeurbancs3 < 40% largeurdpb",null,null,null,null,null,null,null,null,null,3,null,null,false,{"$f":"IF(U25=TRUE,R25,0)","v":0}]
[null,null,null,null,null,null,null,"largeurbancs3 ≥ 40% largeurdpb",null,null,null,null,null,null,null,null,null,5,null,null,false,{"$f":"IF(U26=TRUE,R26,0)","v":0}]
[]
[null,null,null,null,null,null,"D6","À quel style fluvial correspond le tronçon où se trouve l'embâcle de bois?",null,null,null,null,null,null,null,null,null,null,null,"D6",{"$f":"SUM(V29:V32)","v":0}]
[null,null,null,null,null,null,null,"Linéaire, méandre stable",null,null,null,null,null,null,null,null,null,0,null,null,false,{"$f":"IF(U29=TRUE,R29,0)","v":0}]
[null,null,null,null,null,null,null,"Méandre dynamique (avulsion et/ou migration latérale)",null,null,null,null,null,null,null,null,null,3,null,null,false,{"$f":"IF(U30=TRUE,R30,0)","v":0}]
[null,null,null,null,null,null,null,"Divagant",null,null,null,null,null,null,null,null,null,5,null,null,false,{"$f":"IF(U31=TRUE,R31,0)","v":0}]
[null,null,null,null,null,null,null,"Cône alluvial ou delta",null,null,null,null,null,null,null,null,null,10,null,null,false,{"$f":"IF(U32=TRUE,R32,0)","v":0}]
[null,null,null,null,null,null,"D7","Dans l'historique récent (1960±), quelles sont les fluctuations de largeur observées ?",null,null,null,null,null,null,null,null,null,null,null,"D7",{"$f":"SUM(V34:V37)","v":0}]
[null,null,null,null,null,null,null,"ne sais pas",null,null,null,null,null,null,null,null,null,2,null,null,false,{"$f":"IF(U34=TRUE,R34,0)","v":0}]
[null,null,null,null,null,null,null,"∆ largeurs < 10%",null,null,null,null,null,null,null,null,null,0,null,null,false,{"$f":"IF(U35=TRUE,R35,0)","v":0}]
[null,null,null,null,null,null,null,"∆ largeurs ≥ 10% et < 50%",null,null,null,null,null,null,null,null,null,3,null,null,false,{"$f":"IF(U36=TRUE,R36,0)","v":0}]
[null,null,null,null,null,null,null,"∆ largeurs ≥ 50%*",null,null,null,null,null,null,null,null,null,5,null,null,false,{"$f":"IF(U37=TRUE,R37,0)","v":0}]
[null,null,null,null,null,null,null,"*cours d'eau instable et sensible aux perturbations; risque d'aggradation même si largeurstructure = 1.1 largeurdpb; vérifier s'il y a une tendance systématique dans les changements observés"]
[null,null,null,null,null,null,"D8","Dans l'historique récent (1960±), est-ce que le cours d'eau s'est déplacé ?",null,null,null,null,null,null,null,null,null,null,null,"D8",{"$f":"SUM(V40:V43)","v":0}]
[null,null,null,null,null,null,null,"ne sais pas",null,null,null,null,null,null,null,null,null,2,null,null,false,{"$f":"IF(U40=TRUE,R40,0)","v":0}]
[null,null,null,null,null,null,null,"déplacement < 1 x largeurdpb",null,null,null,null,null,null,null,null,null,0,null,null,false,{"$f":"IF(U41=TRUE,R41,0)","v":0}]
[null,null,null,null,null,null,null,"déplacement ≥ 1 x largeurdpb et < 3 x largeurdpb",null,null,null,null,null,null,null,null,null,3,null,null,false,{"$f":"IF(U42=TRUE,R42,0)","v":0}]
[null,null,null,null,null,null,null,"déplacement ≥ 3 x largeurdpb ou avulsion*",null,null,null,null,null,null,null,null,null,5,null,null,false,{"$f":"IF(U43=TRUE,R43,0)","v":0}]
[null,null,null,null,null,null,null,"*Cours d'eau instable, sensible aux perturbations et propice à une problématique d'érosion des berges"]
[null,null,null,null,null,null,"D9","Quel type de crues domine le cours d'eau?",null,null,null,null,null,null,null,null,null,null,null,"D9",{"$f":"SUM(V46:V47)","v":0}]
[null,null,null,null,null,null,null,"Fluvial",null,null,null,null,null,null,null,null,null,0,null,null,false,{"$f":"IF(U46=TRUE,R46,0)","v":0}]
[null,null,null,null,null,null,null,"Torrentiel",null,null,null,null,null,null,null,null,null,3,null,null,false,{"$f":"IF(U47=TRUE,R47,0)","v":0}]
[]
[]
[]
[]
[]
[]
[]
[]
[]
[]
[]
["Pour plus d'informations : maxime2_boivin@uqac.ca"]

{"sheet":"Indice dynamique bois","index":2,"n_rows":73,"n_cols":22,"rows_kept":73,"cut":false,"hidden":false,"merged":[[53,7,53,15],[54,7,54,15],[47,7,47,15],[48,7,48,15],[49,7,49,15],[50,7,50,18],[51,7,51,15],[52,7,52,15],[46,7,46,15],[32,7,32,15],[33,7,33,15],[34,7,34,15],[35,7,35,15],[36,7,36,15],[38,7,38,18],[39,7,39,15],[40,7,40,15],[41,7,41,15],[44,7,44,18],[45,7,45,15],[37,7,37,15],[42,7,42,15],[43,7,43,15],[23,7,23,15],[24,7,24,18],[25,7,25,15],[26,7,26,15],[27,7,27,15],[16,2,17,2],[6,7,6,15],[7,7,7,15],[8,7,8,15],[2,7,2,15],[3,7,3,15],[4,7,4,15],[5,7,5,18],[12,7,12,15],[13,7,13,15],[14,7,14,15],[15,7,15,18],[9,7,9,15],[10,7,10,15],[11,7,11,18],[16,7,16,15],[56,7,56,15],[57,7,57,15],[58,7,58,15],[59,7,59,15],[0,6,0,18],[1,7,1,18],[21,7,21,15],[22,7,22,15],[17,7,17,15],[18,7,18,15],[19,7,19,15],[20,7,20,18],[28,7,28,15],[29,7,29,15],[30,7,30,15],[31,7,31,15]]}
[null,null,null,null,null,null,"Dynamique du bois en rivière"]
[null,null,null,null,null,null,"B1","À l'échelle du tronçon fluvial, quelle proportion du linéaire de cours d'eau est caractérisée par de la végétation arborescente?",null,null,null,null,null,null,null,null,null,null,null,"B1",{"$f":"SUM(V3:V5)","v":0}]
[null,null,null,null,null,null,null,"< 30%",null,null,null,null,null,null,null,null,null,0,null,null,false,{"$f":"IF(U3=TRUE,R3,0)","v":0}]
[null,null,null,null,null,null,null,"> 30% et < 60%",null,null,null,null,null,null,null,null,null,3,null,null,false,{"$f":"IF(U4=TRUE,R4,0)","v":0}]
[null,null,null,null,null,null,null,"> 60%",null,null,null,null,null,null,null,null,null,5,null,null,false,{"$f":"IF(U5=TRUE,R5,0)","v":0}]
[null,null,null,null,null,null,"B2","Quel est le principal mode de recrutement du bois sur le tronçon et en amont? (plusieurs réponses possibles)",null,null,null,null,null,null,null,null,null,null,null,"B2",{"$f":"SUM(V7:V11)","v":0}]
[null,null,null,null,null,null,null,"Mortalité naturelle",null,null,null,null,null,null,null,null,null,1,null,null,false,{"$f":"IF(U7=TRUE,R7,0)","v":0}]
[null,null,null,null,null,null,null,"Ne sais pas",null,null,null,null,null,null,null,null,null,2,null,null,false,{"$f":"IF(U8=TRUE,R8,0)","v":0}]
[null,null,null,null,null,null,null,"Érosion des berges (quelques cm/an)",null,null,null,null,null,null,null,null,null,3,null,null,false,{"$f":"IF(U9=TRUE,R9,0)","v":0}]
[null,null,null,null,null,null,null,"Migration du chenal (plusieurs cm ou m\\an) et/ou Avulsion",null,null,null,null,null,null,null,null,null,5,null,null,false,{"$f":"IF(U10=TRUE,R10,0)","v":0}]
[null,null,null,null,null,null,null,"Mouvement de masse (avalanche, glissement de terrain)",null,null,null,null,null,null,null,null,null,8,null,null,false,{"$f":"IF(U11=TRUE,R11,0)","v":0}]
[null,null,null,null,null,null,"B3","Le bois dans l'embâcle est-il en bon état?",null,null,null,null,null,null,null,null,null,null,null,"B3",{"$f":"SUM(V13:V15)","v":0}]
[null,null,null,null,null,null,null,"Plus de 60% du bois est décomposé",null,null,null,null,null,null,null,null,null,0,null,null,false,{"$f":"IF(U13=TRUE,R13,0)","v":0}]
[null,null,null,null,null,null,null,"Entre 30% et 60% du bois est décomposé",null,null,null,null,null,null,null,null,null,3,null,null,false,{"$f":"IF(U14=TRUE,R14,0)","v":0}]
[null,null,null,null,null,null,null,"Le bois est sain; < 30% du bois est décomposé",null,null,null,null,null,null,null,null,null,5,null,null,false,{"$f":"IF(U15=TRUE,R15,0)","v":0}]
[null,null,null,null,null,null,"B4","À l'échelle du tronçon, comment évoluent les volumes de bois",null,null,null,null,null,null,null,null,null,null,null,"B4",{"$f":"SUM(V17:V20)","v":0}]
[null,null,{"$f":"C19/C20","v":0},null,null,null,null,"Ne sais pas",null,null,null,null,null,null,null,null,null,2,null,null,false,{"$f":"IF(U17=TRUE,R17,0)","v":0}]
["Indice de dynamique du bois en rivière",null,null,null,null,null,null,"Les volumes de bois semblent en diminution",null,null,null,null,null,null,null,null,null,0,null,null,false,{"$f":"IF(U18=TRUE,R18,0)","v":0}]
["Score",null,{"$f":"SUM(V3:V60)","v":0},null,null,null,null,"Les volumes de bois semblent stables",null,null,null,null,null,null,null,null,null,3,null,null,false,{"$f":"IF(U19=TRUE,R19,0)","v":0}]
["Score maximum",null,{"$f":"SUM(R5,R10,R15,R20,R24,R27,R33,R37,R42,R49,R54,R60)","v":56},null,null,null,null,"Les volumes de bois semblent en augmentation",null,null,null,null,null,null,null,null,null,5,null,null,false,{"$f":"IF(U20=TRUE,R20,0)","v":0}]
[null,null,null,null,null,null,"B5","L'embâcle de bois montre-t-il des signes d'instabilité?",null,null,null,null,null,null,null,null,null,null,null,"B5",{"$f":"SUM(V22:V24)","v":0}]
[null,null,null,null,null,null,null,"Des bois sont solidement fixés ou partiellement enfouis ",null,null,null,null,null,null,null,null,null,0,null,null,null,{"$f":"IF(U22=TRUE,R22,0)","v":0}]
[null,null,null,null,null,null,null,"Des bois sont ancrés par un réseau racinaire bien développé",null,null,null,null,null,null,null,null,null,3,null,null,false,{"$f":"IF(U23=TRUE,R23,0)","v":0}]
[null,null,null,null,null,null,null,"Les bois sont mobiles; ils se sont accumulés récemment",null,null,null,null,null,null,null,null,null,5,null,null,false,{"$f":"IF(U24=TRUE,R24,0)","v":0}]
[null,null,null,null,null,null,"B6","Quel est le rapport entre la hauteur des arbres de la ripisylve et la largeur du chenal?",null,null,null,null,null,null,null,null,null,null,null,"B6",{"$f":"SUM(V26:V28)","v":0}]
[null,null,null,null,null,null,null,"Hauteur arbres <  Largeur dpb ",null,null,null,null,null,null,null,null,null,1,null,null,false,{"$f":"IF(U26=TRUE,R26,0)","v":0}]
[null,null,null,null,null,null,null,"Hauteur des arbres ≈ Largeur dpb ",null,null,null,null,null,null,null,null,null,3,null,null,false,{"$f":"IF(U27=TRUE,R27,0)","v":0}]
[null,null,null,null,null,null,null,"Hauteur des arbres > Largeur dpb ",null,null,null,null,null,null,null,null,null,5,null,null,false,{"$f":"IF(U28=TRUE,R28,0)","v":0}]
[null,null,null,null,null,null,"B7","À l'échelle de l'embâcle, est-ce qu'il y a des modifications en termes de volume et du nombre de morceaux de bois?",null,null,null,null,null,null,null,null,null,null,null,"B7",{"$f":"SUM(V30:V33)","v":0}]
[null,null,null,null,null,null,null,"Ne sais pas",null,null,null,null,null,null,null,null,null,2,null,null,false,{"$f":"IF(U30=TRUE,R30,0)","v":0}]
[null,null,null,null,null,null,null,"Le volume et le nombre de bois semblent en diminution",null,null,null,null,null,null,null,null,null,0,null,null,false,{"$f":"IF(U31=TRUE,R31,0)","v":0}]
[null,null,null,null,null,null,null,"Le volume et le nombre de bois semblent stables",null,null,null,null,null,null,null,null,null,3,null,null,false,{"$f":"IF(U32=TRUE,R32,0)","v":0}]
[null,null,null,null,null,null,null,"Le volume et le nombre de bois semblent en augmentation",null,null,null,null,null,null,null,null,null,5,null,null,false,{"$f":"IF(U33=TRUE,R33,0)","v":0}]
[null,null,null,null,null,null,"B8","Au niveau du transport de bois dans le cours d'eau, quels types d'évènements hydrométéorologiques sont susceptibles d'influencer la mobilité du bois? (Plusieurs réponses possibles)",null,null,null,null,null,null,null,null,null,null,null,"B8",{"$f":"SUM(V35:V38)","v":0}]
[null,null,null,null,null,null,null,"Absence de crue significative",null,null,null,null,null,null,null,null,null,0,null,null,false,{"$f":"IF(U35=TRUE,R35,0)","v":0}]
[null,null,null,null,null,null,null,"Crue en eau claire",null,null,null,null,null,null,null,null,null,2,null,null,false,{"$f":"IF(U36=TRUE,R36,0)","v":0}]
[null,null,null,null,null,null,null,"Crue avec débâcle mécanique des glaces ",null,null,null,null,null,null,null,null,null,3,null,null,false,{"$f":"IF(U37=TRUE,R37,0)","v":0}]
[null,null,null,null,null,null,null,"Crue torrentielle",null,null,null,null,null,null,null,null,null,5,null,null,false,{"$f":"IF(U38=TRUE,R38,0)","v":0}]
[null,null,null,null,null,null,"B9","Quelle proportion du chenal au niveau plein-bord est obstruée par l'embâcle?",null,null,null,null,null,null,null,null,null,null,null,"B9",{"$f":"SUM(V40:V44)","v":0}]
[null,null,null,null,null,null,null,"Moins de 10% du chenal",null,null,null,null,null,null,null,null,null,0,null,null,false,{"$f":"IF(U40=TRUE,R40,0)","v":0}]
[null,null,null,null,null,null,null,"Entre 10% et 30%",null,null,null,null,null,null,null,null,null,3,null,null,false,{"$f":"IF(U41=TRUE,R41,0)","v":0}]
[null,null,null,null,null,null,null,"Entre 30% et 50%",null,null,null,null,null,null,null,null,null,5,null,null,false,{"$f":"IF(U42=TRUE,R42,0)","v":0}]
[null,null,null,null,null,null,null,"Entre 50% et 75%",null,null,null,null,null,null,null,null,null,8,null,null,false,{"$f":"IF(U43=TRUE,R43,0)","v":0}]
[null,null,null,null,null,null,null,"75% et plus",null,null,null,null,null,null,null,null,null,10,null,null,false,0]
[null,null,null,null,null,null,"B10","Est-ce que d'autres bois se situent sur ce tronçon fluvial ou sur un tronçon en amont?",null,null,null,null,null,null,null,null,null,null,null,"B10",{"$f":"SUM(V46:V49)","v":0}]
[null,null,null,null,null,null,null,"Ne sais pas",null,null,null,null,null,null,null,null,null,2,null,null,false,{"$f":"IF(U46=TRUE,R46,0)","v":0}]
[null,null,null,null,null,null,null,"Aucun embâcle de bois ou bois individuels dispersés",null,null,null,null,null,null,null,null,null,0,null,null,false,{"$f":"IF(U47=TRUE,R47,0)","v":0}]
[null,null,null,null,null,null,null,"Quelques embâcles par kilomètres linéaires de cours d'eau (< 10 embâcles)",null,null,null,null,null,null,null,null,null,3,null,null,false,{"$f":"IF(U48=TRUE,R48,0)","v":0}]
[null,null,null,null,null,null,null,"Plusieurs embâcles par kilomètres linéaires de cours d'eau (>10 embâcles)",null,null,null,null,null,null,null,null,null,5,null,null,false,{"$f":"IF(U49=TRUE,R49,0)","v":0}]
[null,null,null,null,null,null,null,"Si les volumes de bois semblent grands, établir un bilan ligneux"]
[null,null,null,null,null,null,"B11","Le bois influence-t-il la mobilité du chenal?",null,null,null,null,null,null,null,null,null,null,null,"B11",{"$f":"SUM(V52:V55)","v":0}]
[null,null,null,null,null,null,null,"Le bois protège la berge",null,null,null,null,null,null,null,null,null,0,null,null,false,{"$f":"IF(U52=TRUE,R52,0)","v":0}]
[null,null,null,null,null,null,null,"Le bois ne protège pas la berge, mais n'a pas d'influence sur les taux d'érosion",null,null,null,null,null,null,null,null,null,3,null,null,false,{"$f":"IF(U53=TRUE,R53,0)","v":0}]
[null,null,null,null,null,null,null,"Le bois augmente les taux d'érosion localement",null,null,null,null,null,null,null,null,null,5,null,null,false,{"$f":"IF(U54=TRUE,R54,0)","v":0}]
[null,null,null,null,null,null,null,"Le bois initie le développement d'un chenal secondaire (avulsion)",null,null,null,null,null,null,null,null,null,8,null,null,false,{"$f":"IF(U55=TRUE,R55,0)","v":0}]
[null,null,null,null,null,null,"B 12","Le bois influence-t-il les transits sédimentaires?",null,null,null,null,null,null,null,null,null,null,null,"B12",{"$f":"SUM(V57:V60)","v":0}]
[null,null,null,null,null,null,null,"Aucune influence sur le transit sédimentaire",null,null,null,null,null,null,null,null,null,0,null,null,false,{"$f":"IF(U57=TRUE,R57,0)","v":0}]
[null,null,null,null,null,null,null,"Des sédiments plus fins que ceux qui composent le lit se déposent à proximité du bois",null,null,null,null,null,null,null,null,null,1,null,null,false,{"$f":"IF(U58=TRUE,R58,0)","v":0}]
[null,null,null,null,null,null,null,"Des bancs d'accumulations se forment à proximité du bois, dans un secteur où les bancs sont fréquents",null,null,null,null,null,null,null,null,null,3,null,null,false,{"$f":"IF(U59=TRUE,R59,0)","v":0}]
[null,null,null,null,null,null,null,"Un ou plusieurs bancs d'accumulations se forment à proximité du bois, dans un secteur ou les bancs sont rares ou absent",null,null,null,null,null,null,null,null,null,5,null,null,false,{"$f":"IF(U60=TRUE,R60,0)","v":0}]
[]
[]
[]
[]
[]
[]
[]
[]
[]
[]
[]
[]
["Pour plus d'informations : maxime2_boivin@uqac.ca"]

{"sheet":"Indice Enjeux","index":3,"n_rows":53,"n_cols":23,"rows_kept":53,"cut":false,"hidden":false,"merged":[[15,2,16,2],[37,8,37,19],[38,8,38,16],[39,8,39,16],[34,8,34,16],[35,8,35,16],[36,8,36,16],[31,8,31,16],[32,8,32,16],[33,8,33,19],[28,8,28,16],[29,8,29,19],[30,8,30,16],[25,8,25,16],[26,8,26,16],[27,8,27,16],[22,8,22,16],[23,8,23,19],[24,8,24,16],[19,8,19,16],[20,8,20,16],[21,8,21,16],[16,8,16,16],[17,8,17,16],[18,8,18,19],[12,8,12,16],[13,8,13,16],[14,8,14,19],[15,8,15,16],[9,8,9,16],[10,8,10,16],[11,8,11,16],[6,8,6,16],[7,8,7,16],[8,8,8,19],[3,8,3,16],[4,8,4,16],[5,8,5,16],[0,7,0,19],[1,8,1,19],[2,8,2,16]]}
[null,null,null,null,null,null,null,"Enjeux de sécurité"]
[null,null,null,null,null,null,null,"S1","Existe-t-il un espace où le cours d'eau serait libre de se déplacer sans nuire aux infrastructures (routes, maisons, ponts…)?",null,null,null,null,null,null,null,null,null,null,null,"S1",{"$f":"SUM(W3:W7)","v":0}]
[null,null,null,null,null,null,null,null,"Corridor large sur la longueur du tronçon",null,null,null,null,null,null,null,null,null,1,null,null,false,{"$f":"IF(V3=TRUE,S3,0)","v":0}]
[null,null,null,null,null,null,null,null,"≈ 1 fois la largeur du cours d'eau linéaire, méandre stable ou ≈ 2 fois pour méandre dynamique, divagant"]
[null,null,null,null,null,null,null,null,"Corridor étroit sur la longueur du tronçon",null,null,null,null,null,null,null,null,null,3,null,null,false,0]
[null,null,null,null,null,null,null,null,"< 1 fois la largeur du cours d'eau linéaire, méandre stable ou < 2 fois pour méandre dynamique, divagant"]
[null,null,null,null,null,null,null,null,"Aucun corridor sur la longueur du tronçon",null,null,null,null,null,null,null,null,null,5,null,null,false,0]
[null,null,null,null,null,null,null,null,"*< 0,5 fois la largeur du cours d'eau linéaire, méandre stable ou < 1 fois pour méandre dynamique, divagant"]
[null,null,null,null,null,null,null,"S2","Des infrastructures sont-elles susceptibles d'être endommagées par le bois en rivière?  ( route, pont, ponceau, habitation, enrochement)",null,null,null,null,null,null,null,null,null,null,null,"S2",{"$f":"SUM(W10:W14)","v":0}]
[null,null,null,null,null,null,null,null,"Aucune infrastructure",null,null,null,null,null,null,null,null,null,0,null,null,false,{"$f":"IF(V10=TRUE,S10,0)","v":0}]
[null,null,null,null,null,null,null,null,"Des infrastructures se situent à quelques kilomètres en aval",null,null,null,null,null,null,null,null,null,1,null,null,false,{"$f":"IF(V11=TRUE,S11,0)","v":0}]
[null,null,null,null,null,null,null,null,"Des infrastructures se situent à quelques centaines de mètres en aval",null,null,null,null,null,null,null,null,null,3,null,null,false,{"$f":"IF(V12=TRUE,S12,0)","v":0}]
[null,null,null,null,null,null,null,null,"Des infrastructures se situent à quelques dizaines de mètres",null,null,null,null,null,null,null,null,null,5,null,null,false,{"$f":"IF(V13=TRUE,S13,0)","v":0}]
[null,null,null,null,null,null,null,null,"Le bois est en contact avec une infrastructure",null,null,null,null,null,null,null,null,null,10,null,null,false,{"$f":"IF(V14=TRUE,S14,0)","v":0}]
[null,null,null,null,null,null,null,"S3","Des infrastructures limitent-elles la mobilité du bois? (Ex.: pont, ponceau...)",null,null,null,null,null,null,null,null,null,null,null,"S3",{"$f":"SUM(W16:W18)","v":0}]
[null,null,{"$f":"C18/C19","v":0},null,null,null,null,null,"Largeur des infrastructures > hauteur des arbres ",null,null,null,null,null,null,null,null,null,1,null,null,null,{"$f":"IF(V16=TRUE,S16,0)","v":0}]
["Indice relatif aux enjeux",null,null,null,null,null,null,null,"Largeur des infrastructures ≈ hauteur des arbres",null,null,null,null,null,null,null,null,null,3,null,null,false,{"$f":"IF(V17=TRUE,S17,0)","v":0}]
["Score",null,{"$f":"SUM(W3:W40)","v":0},null,null,null,null,null,"Largeur des infrastructures < hauteur des arbres",null,null,null,null,null,null,null,null,null,5,null,null,false,{"$f":"IF(V18=TRUE,S18,0)","v":0}]
["Score maximum",null,{"$f":"SUM(S7,S13,S18,S22,S27,S33,S37,S40,)","v":38},null,null,null,null,"S4","Quel est le niveau d'aménagement du tronçon fluvial?",null,null,null,null,null,null,null,null,null,null,null,"S4",{"$f":"SUM(W20:W23)","v":0}]
[null,null,null,null,null,null,null,null,"Le tronçon est principalement naturel:  environ 15% d'aménagement sur le tronçon",null,null,null,null,null,null,null,null,null,0,null,null,false,{"$f":"IF(V20=TRUE,S20,0)","v":0}]
[null,null,null,null,null,null,null,null,"Le tronçon est partiellement  aménagé: de 15 à 40% d'aménagements sur le tronçon",null,null,null,null,null,null,null,null,null,3,null,null,false,{"$f":"IF(V21=TRUE,S21,0)","v":0}]
[null,null,null,null,null,null,null,null,"Le tronçon est fortement aménagé: de 40 à 70% d'aménagement sur le tronçon",null,null,null,null,null,null,null,null,null,5,null,null,false,{"$f":"IF(V22=TRUE,S22,0)","v":0}]
[null,null,null,null,null,null,null,null,"Le tronçon est en milieu urbain: 70% et plus d'aménagement sur le tronçon",null,null,null,null,null,null,null,null,null,8,null,null,false,{"$f":"IF(V23=TRUE,S23,0)","v":0}]
[null,null,null,null,null,null,null,"S5","Quelle proportion du chenal au niveau plein-bord est obstruée par un embâcle?",null,null,null,null,null,null,null,null,null,null,null,"S5",{"$f":"SUM(W25:W29)","v":0}]
[null,null,null,null,null,null,null,null,"Moins de 10% du chenal",null,null,null,null,null,null,null,null,null,0,null,null,false,{"$f":"IF(V25=TRUE,S25,0)","v":0}]
[null,null,null,null,null,null,null,null,"Entre 10% et 30%",null,null,null,null,null,null,null,null,null,3,null,null,false,{"$f":"IF(V26=TRUE,S26,0)","v":0}]
[null,null,null,null,null,null,null,null,"Entre 30% et 50%",null,null,null,null,null,null,null,null,null,5,null,null,false,{"$f":"IF(V27=TRUE,S27,0)","v":0}]
[null,null,null,null,null,null,null,null,"Entre 50% et 75%",null,null,null,null,null,null,null,null,null,8,null,null,false,{"$f":"IF(V28=TRUE,S28,0)","v":0}]
[null,null,null,null,null,null,null,null,"75% et plus",null,null,null,null,null,null,null,null,null,10,null,null,false,{"$f":"IF(V29=TRUE,S29,0)","v":0}]
[null,null,null,null,null,null,null,"S6","Le bois représente-t-il un danger lors de l'accès au cours d'eau?",null,null,null,null,null,null,null,null,null,null,null,"S6",{"$f":"SUM(W31:W33)","v":0}]
[null,null,null,null,null,null,null,null,"Aucun danger",null,null,null,null,null,null,null,null,null,0,null,null,false,{"$f":"IF(V31=TRUE,S31,0)","v":0}]
[null,null,null,null,null,null,null,null,"Le bois entrave l'accès au cours d'eau, mais il est possible de le contourner",null,null,null,null,null,null,null,null,null,1,null,null,false,{"$f":"IF(V32=TRUE,S32,0)","v":0}]
[null,null,null,null,null,null,null,null,"Il est nécessaire d'enjamber le bois pour accéder au cours d'eau",null,null,null,null,null,null,null,null,null,5,null,null,false,{"$f":"IF(V33=TRUE,S33,0)","v":0}]
[null,null,null,null,null,null,null,"S7","Le bois représente un danger pour les usagers du cours d'eau?",null,null,null,null,null,null,null,null,null,null,null,"S7",{"$f":"SUM(W35:W37)","v":0}]
[null,null,null,null,null,null,null,null,"Aucun danger",null,null,null,null,null,null,null,null,null,0,null,null,false,{"$f":"IF(V35=TRUE,S35,0)","v":0}]
[null,null,null,null,null,null,null,null,"Danger modéré; il peut être contourné et évité.",null,null,null,null,null,null,null,null,null,3,null,null,false,{"$f":"IF(V36=TRUE,S36,0)","v":0}]
[null,null,null,null,null,null,null,null,"Grand danger, les usagers doivent l'enjamber pour poursuivre leur activité (kayak, canoë pêche)",null,null,null,null,null,null,null,null,null,5,null,null,false,{"$f":"IF(V37=TRUE,S37,0)","v":0}]
[null,null,null,null,null,null,null,"S8","Est-ce qu'une personne/communauté se retrouve isolée en cas de bris d'infrastructure provoquée par le bois?",null,null,null,null,null,null,null,null,null,null,null,"S8",{"$f":"SUM(W39:W41)","v":0}]
[null,null,null,null,null,null,null,null,"Non",null,null,null,null,null,null,null,null,null,0,null,null,false,{"$f":"IF(V39=TRUE,S39,0)","v":0}]
[null,null,null,null,null,null,null,null,"Oui",null,null,null,null,null,null,null,null,null,3,null,null,false,{"$f":"IF(V40=TRUE,S40,0)","v":0}]
[]
[]
[]
[]
[]
[]
[]
[]
[]
[]
[]
[]
["Pour plus d'informations : maxime2_boivin@uqac.ca"]

{"sheet":"Indice Habitat","index":4,"n_rows":46,"n_cols":22,"rows_kept":46,"cut":false,"hidden":false,"merged":[[33,7,33,15],[34,7,34,15],[35,7,36,15],[29,7,29,15],[30,7,30,15],[32,7,32,15],[25,7,25,15],[27,7,27,15],[28,7,28,15],[21,7,21,15],[23,7,23,15],[24,7,24,15],[19,7,19,15],[20,7,20,15],[14,7,14,15],[15,7,15,15],[16,7,16,15],[0,6,0,18],[11,7,11,15],[12,7,12,15],[13,7,13,18],[7,7,7,15],[8,7,8,15],[10,7,10,15],[17,2,18,2],[1,7,1,18],[2,7,2,15],[3,7,3,15],[4,7,4,15],[5,7,5,18],[6,7,6,15],[17,7,17,15]]}
[null,null,null,null,null,null,"Habitat"]
[null,null,null,null,null,null,"H1","L'embâcle de bois force-t-il la présence de fosses?",null,null,null,null,null,null,null,null,null,null,null,"H1",{"$f":"SUM(V3:V5)","v":0}]
[null,null,null,null,null,null,null,"Le bois ne crée aucune fosse",null,null,null,null,null,null,null,null,null,0,null,null,false,{"$f":"IF(U3=TRUE,R3,0)","v":0}]
[null,null,null,null,null,null,null,"Le bois crée une fosse, mais d'autres sont présentes",null,null,null,null,null,null,null,null,null,3,null,null,false,{"$f":"IF(U4=TRUE,R4,0)","v":0}]
[null,null,null,null,null,null,null,"Le bois crée une des rares fosses ",null,null,null,null,null,null,null,null,null,5,null,null,false,{"$f":"IF(U5=TRUE,R5,0)","v":0}]
[null,null,null,null,null,null,"H2","L'embâcle de bois est-il une source d'ombre dans l'eau?",null,null,null,null,null,null,null,null,null,null,null,"H2",{"$f":"SUM(V7:V9)","v":0}]
[null,null,null,null,null,null,null,"Le bois ne crée pas d'ombre",null,null,null,null,null,null,null,null,null,0,null,null,false,{"$f":"IF(U7=TRUE,R7,0)","v":0}]
[null,null,null,null,null,null,null,"Le bois crée une source d'ombre parmi d'autres",null,null,null,null,null,null,null,null,null,3,null,null,false,{"$f":"IF(U8=TRUE,R8,0)","v":0}]
[null,null,null,null,null,null,null,"Le bois crée une des rares sources d'ombre",null,null,null,null,null,null,null,null,null,5,null,null,false,{"$f":"IF(U9=TRUE,R9,0)","v":0}]
[null,null,null,null,null,null,"H3","L'embâcle de bois favorise-t-il la création d'habitats riverains?",null,null,null,null,null,null,null,null,null,null,null,"H3",{"$f":"SUM(V11:V13)","v":0}]
[null,null,null,null,null,null,null,"L'embâcle est submergé à l'étiage",null,null,null,null,null,null,null,null,null,0,null,null,false,{"$f":"IF(U11=TRUE,R11,0)","v":0}]
[null,null,null,null,null,null,null,"L'embâcle est en contact avec la berge ou sur un banc en accumulation",null,null,null,null,null,null,null,null,null,3,null,null,false,{"$f":"IF(U12=TRUE,R12,0)","v":0}]
[null,null,null,null,null,null,null,"L'embâcle est en contact avec la berge ou sur un banc en accumulation et de la végétation se développe sur ou à proximité de l'embâcle (quelques mètres)",null,null,null,null,null,null,null,null,null,5,null,null,false,{"$f":"IF(U13=TRUE,R13,0)","v":0}]
[null,null,null,null,null,null,"H4","Quelle serait l'ampleur des impacts d'un démantèlement sur la dynamique sédimentaire et l'habitat à court terme",null,null,null,null,null,null,null,null,null,null,null,"H4",{"$f":"SUM(V15:V18)","v":0}]
[null,null,null,null,null,null,null,"Minime; Intervention manuelle sur un seul arbre ou un petit embâcle sans interventions sur la ripisylve",null,null,null,null,null,null,null,null,null,1,null,null,false,{"$f":"IF(U15=TRUE,R15,0)","v":0}]
[null,null,null,null,null,null,null,"Modérée; Intervention manuelle d'un embâcle de taille moyenne avec intervention sur la ripisylve",null,null,null,null,null,null,null,null,null,3,null,null,false,{"$f":"IF(U16=TRUE,R16,0)","v":0}]
[null,null,null,null,null,null,null,"Importante; Intervention mécanique sur un embâcle moyen ou grand à partir des berges",null,null,null,null,null,null,null,null,null,5,null,null,false,{"$f":"IF(U17=TRUE,R17,0)","v":0}]
[null,null,{"$f":"C20/C21","v":0},null,null,null,null,"Très élevée; intervention mécanique sur un embâcle moyen ou grand, directement dans le chenal",null,null,null,null,null,null,null,null,null,10,null,null,false,{"$f":"IF(U18=TRUE,R18,0)","v":0}]
["Indice habitat",null,null,null,null,null,"H5","L'embâcle de bois crée-t-il des zones de vitesses contrastées?",null,null,null,null,null,null,null,null,null,null,null,"H5",{"$f":"SUM(V20:V22)","v":0}]
["Score",null,{"$f":"SUM(V3:V35)","v":0},null,null,null,null,"Aucune variabilité dans la vitesse d'écoulement",null,null,null,null,null,null,null,null,null,0,null,null,false,{"$f":"IF(U20=TRUE,R20,0)","v":0}]
["Score maximum",null,{"$f":"SUM(R5,R9,R13,R17,R22,R26,R30,R35)","v":40},null,null,null,null,"Vitesse d'écoulement faiblement influencée par le bois",null,null,null,null,null,null,null,null,null,3,null,null,false,{"$f":"IF(U21=TRUE,R21,0)","v":0}]
[null,null,null,null,null,null,null,"Vitesse d'écoulement fortement influencée par le bois",null,null,null,null,null,null,null,null,null,5,null,null,false,{"$f":"IF(U22=TRUE,R22,0)","v":0}]
[null,null,null,null,null,null,"H6","Les sédiments qui composent le lit sont-ils de taille hétérogène?",null,null,null,null,null,null,null,null,null,null,null,"H6",{"$f":"SUM(V24:V26)","v":0}]
[null,null,null,null,null,null,null,"Granulométrie homogène",null,null,null,null,null,null,null,null,null,0,null,null,false,{"$f":"IF(U24=TRUE,R24,0)","v":0}]
[null,null,null,null,null,null,null,"Granulométrie hétérogène, sans influence du bois",null,null,null,null,null,null,null,null,null,3,null,null,false,{"$f":"IF(U25=TRUE,R25,0)","v":0}]
[null,null,null,null,null,null,null,"Granulométrie hétérogène influencée par le bois",null,null,null,null,null,null,null,null,null,5,null,null,false,{"$f":"IF(U26=TRUE,R26,0)","v":0}]
[null,null,null,null,null,null,"H7","Est-ce que d'autres embâcles de bois se situent sur ce tronçon fluvial?",null,null,null,null,null,null,null,null,null,null,null,"H7",{"$f":"SUM(V28:V30)","v":0}]
[null,null,null,null,null,null,null,"Plusieurs embâcles par kilomètres linéaires de cours d'eau (+ de 10 embâcles/km)",null,null,null,null,null,null,null,null,null,0,null,null,false,{"$f":"IF(U28=TRUE,R28,0)","v":0}]
[null,null,null,null,null,null,null,"Quelques embâcles par kilomètres linéaires de cours d'eau (2 à 10 embâcles/km)",null,null,null,null,null,null,null,null,null,3,null,null,false,{"$f":"IF(U29=TRUE,R29,0)","v":0}]
[null,null,null,null,null,null,null,"Aucun embâcle de bois ou bois individuel dispersés (0 ou 1 embâcle/km)",null,null,null,null,null,null,null,null,null,5,null,null,false,{"$f":"IF(U30=TRUE,R30,0)","v":0}]
[null,null,null,null,null,null,null,"*Si les volumes de bois semblent grands, établir un bilan ligneux complet"]
[null,null,null,null,null,null,"H8","Quel est le volume de l'embâcle? ( La taille influence sur la superficie d'habitat potentiel)",null,null,null,null,null,null,null,null,null,null,null,"H8",{"$f":"SUM(V33:V35)","v":0}]
[null,null,null,null,null,null,null,"Embâcle de 0,1 m³ à 5 m³",null,null,null,null,null,null,null,null,null,0,null,null,false,{"$f":"IF(U33=TRUE,R33,0)","v":0}]
[null,null,null,null,null,null,null,"Embâcle de 5 m³ à 100 m³",null,null,null,null,null,null,null,null,null,3,null,null,false,{"$f":"IF(U34=TRUE,R34,0)","v":0}]
[null,null,null,null,null,null,null,"Embâcle de 100 m³ et plus ",null,null,null,null,null,null,null,null,null,5,null,null,false,{"$f":"IF(U35=TRUE,R35,0)","v":0}]
[null,null,null,null,null,null,null,"* Les cours d'eau sont dynamiques, les habitats peuvent évoluer dans le temps. Un habitat en formation est tout aussi important qu'un habitat établi."]
[]
[]
[]
[]
[]
[]
[]
[]
[]
["Pour plus d'informations : maxime2_boivin@uqac.ca"]